[Event "Titled Tuesday Blitz August 31 2021"]
[White "Wachinger, Guenther"]
[Black "Mekhitarian, Krikor Sevag"]
[WhiteFideId "4604261"]
[BlackFideId "2107660"]
[WhiteElo "2212"]
[BlackElo "2598"]
[Result "0-1"]
[Round "07"]
[TimeControl "180+1"]
[Date "2021.08.31"]
[WhiteClock "0:00:02"]
[BlackClock "0:00:03"]

1. e4 {[%clk 0:03:00]}  c5 {[%clk 0:02:57]} 2. Nf3 {[%clk 0:02:53]}  e6 {[%clk 0:02:57]} 3. d4 {[%clk 0:02:52]}  cxd4 {[%clk 0:02:57]} 4. Nxd4 {[%clk 0:02:52]}  a6 {[%clk 0:02:45]} 5. c4 {[%clk 0:02:52]}  Nc6 {[%clk 0:02:43]} 6. a3 {[%clk 0:02:49]}  Nf6 {[%clk 0:02:40]} 7. Nc3 {[%clk 0:02:48]}  d5 {[%clk 0:02:29]} 8. cxd5 {[%clk 0:02:23]}  exd5 {[%clk 0:02:29]} 9. exd5 {[%clk 0:02:23]}  Nxd5 {[%clk 0:02:28]} 10. Nxc6 {[%clk 0:02:23]}  bxc6 {[%clk 0:02:28]} 11. Bd3 {[%clk 0:02:16]}  Be7 {[%clk 0:02:19]} 12. O-O {[%clk 0:02:15]}  O-O {[%clk 0:02:18]} 13. Qc2 {[%clk 0:01:56]}  g6 {[%clk 0:02:14]} 14. Bh6 {[%clk 0:01:55]}  Re8 {[%clk 0:02:12]} 15. Rad1 {[%clk 0:01:51]}  Be6 {[%clk 0:02:08]} 16. Be4 {[%clk 0:01:35]}  Bd6 {[%clk 0:01:59]} 17. Qd2 {[%clk 0:01:06]}  Rb8 {[%clk 0:01:18]} 18. Nxd5 {[%clk 0:00:58]}  Bxd5 {[%clk 0:01:08]} 19. Bxd5 {[%clk 0:00:58]}  cxd5 {[%clk 0:01:08]} 20. Qxd5 {[%clk 0:00:56]}  Bxh2+ {[%clk 0:01:04]} 21. Kxh2 {[%clk 0:00:57]}  Qh4+ {[%clk 0:01:04]} 22. Kg1 {[%clk 0:00:57]}  Qxh6 {[%clk 0:01:04]} 23. b4 {[%clk 0:00:52]}  Qf4 {[%clk 0:00:53]} 24. Qd6 {[%clk 0:00:38]}  Qg4 {[%clk 0:00:39]} 25. Qxa6 {[%clk 0:00:30]}  Re5 {[%clk 0:00:39]} 26. Rd3 {[%clk 0:00:17]}  Rbe8 {[%clk 0:00:37]} 27. Rg3 {[%clk 0:00:16]}  Qf4 {[%clk 0:00:35]} 28. Qd3 {[%clk 0:00:14]}  Re1 {[%clk 0:00:30]} 29. Rxe1 {[%clk 0:00:06]}  Rxe1+ {[%clk 0:00:26]} 30. Kh2 {[%clk 0:00:07]}  Qh4+ {[%clk 0:00:27]} 31. Rh3 {[%clk 0:00:07]}  Qxf2 {[%clk 0:00:28]} 32. Rf3 {[%clk 0:00:04]}  Qh4+ {[%clk 0:00:15]} 33. Rh3 {[%clk 0:00:04]}  Qf4+ {[%clk 0:00:16]} 34. Qg3 {[%clk 0:00:04]}  Qc1 {[%clk 0:00:16]} 35. Qb8+ {[%clk 0:00:03]}  Kg7 {[%clk 0:00:16]} 36. Rf3 {[%clk 0:00:02]}  Rh1+ {[%clk 0:00:14]} 37. Kg3 {[%clk 0:00:02]}  Qg5+ {[%clk 0:00:09]} 38. Kf2 {[%clk 0:00:03]}  Qd2+ {[%clk 0:00:10]} 39. Kg3 {[%clk 0:00:03]}  Qe1+ {[%clk 0:00:08]} 40. Kf4 {[%clk 0:00:02]}  Rh4+ {[%clk 0:00:06]} 41. g4 {[%clk 0:00:02]}  Qd2+ {[%clk 0:00:04]} 42. Kg3 {[%clk 0:00:02]}  Qh2# {[%clk 0:00:03]} 0-1


[Site "https://www.chess.com"]

[Event "Titled Tuesday Blitz August 31 2021"]
[White "Wong, Yinn Long"]
[Black "Bilan, Danila"]
[WhiteFideId "5707684"]
[BlackFideId "24161918"]
[WhiteElo "2706"]
[BlackElo "2566"]
[Result "1-0"]
[Round "07"]
[TimeControl "180+1"]
[Date "2021.08.31"]
[WhiteClock "0:00:24"]
[BlackClock "0:00:05"]

1. e4 {[%clk 0:03:00]}  c6 {[%clk 0:02:59]} 2. d3 {[%clk 0:03:00]}  d5 {[%clk 0:03:00]} 3. Nf3 {[%clk 0:03:00]}  Bg4 {[%clk 0:02:59]} 4. h3 {[%clk 0:03:00]}  Bxf3 {[%clk 0:02:59]} 5. Qxf3 {[%clk 0:03:00]}  e6 {[%clk 0:02:58]} 6. g3 {[%clk 0:03:00]}  g6 {[%clk 0:02:57]} 7. Bg2 {[%clk 0:03:00]}  Bg7 {[%clk 0:02:58]} 8. O-O {[%clk 0:03:00]}  Nd7 {[%clk 0:02:55]} 9. Qe2 {[%clk 0:02:57]}  Ne7 {[%clk 0:02:49]} 10. Nd2 {[%clk 0:02:55]}  O-O {[%clk 0:02:46]} 11. Nf3 {[%clk 0:02:51]}  dxe4 {[%clk 0:02:15]} 12. dxe4 {[%clk 0:02:50]}  e5 {[%clk 0:02:12]} 13. b3 {[%clk 0:02:37]}  Qc7 {[%clk 0:01:59]} 14. Ba3 {[%clk 0:02:37]}  Rfe8 {[%clk 0:01:55]} 15. Rad1 {[%clk 0:02:32]}  Rad8 {[%clk 0:01:49]} 16. Bd6 {[%clk 0:02:17]}  Qa5 {[%clk 0:01:43]} 17. a4 {[%clk 0:02:14]}  Nc8 {[%clk 0:01:24]} 18. Ba3 {[%clk 0:01:56]}  Nf8 {[%clk 0:01:22]} 19. Bb2 {[%clk 0:01:51]}  Ne6 {[%clk 0:01:15]} 20. h4 {[%clk 0:01:51]}  Nb6 {[%clk 0:00:51]} 21. Bh3 {[%clk 0:01:42]}  Nd4 {[%clk 0:00:51]} 22. Nxd4 {[%clk 0:01:31]}  exd4 {[%clk 0:00:52]} 23. Qf3 {[%clk 0:01:26]}  Qe5 {[%clk 0:00:41]} 24. Rfe1 {[%clk 0:01:25]}  c5 {[%clk 0:00:32]} 25. a5 {[%clk 0:01:23]}  Nd7 {[%clk 0:00:31]} 26. Bc1 {[%clk 0:01:23]}  Qf6 {[%clk 0:00:22]} 27. Qg2 {[%clk 0:01:08]}  h6 {[%clk 0:00:20]} 28. Bf4 {[%clk 0:01:02]}  Qc6 {[%clk 0:00:16]} 29. Bg4 {[%clk 0:00:56]}  Ne5 {[%clk 0:00:15]} 30. Bxe5 {[%clk 0:00:52]}  Bxe5 {[%clk 0:00:15]} 31. f4 {[%clk 0:00:53]}  Bg7 {[%clk 0:00:15]} 32. e5 {[%clk 0:00:50]}  Qxg2+ {[%clk 0:00:07]} 33. Kxg2 {[%clk 0:00:50]}  Re7 {[%clk 0:00:05]} 34. Bf3 {[%clk 0:00:44]}  h5 {[%clk 0:00:03]} 35. Rd3 {[%clk 0:00:42]}  Kf8 {[%clk 0:00:03]} 36. Red1 {[%clk 0:00:42]}  Red7 {[%clk 0:00:03]} 37. Re1 {[%clk 0:00:38]}  Re7 {[%clk 0:00:02]} 38. Ra1 {[%clk 0:00:35]}  Rc7 {[%clk 0:00:02]} 39. Ra4 {[%clk 0:00:35]}  Ke7 {[%clk 0:00:01]} 40. Rc4 {[%clk 0:00:35]}  f6 {[%clk 0:00:02]} 41. exf6+ {[%clk 0:00:34]}  Bxf6 {[%clk 0:00:02]} 42. b4 {[%clk 0:00:35]}  b6 {[%clk 0:00:02]} 43. axb6 {[%clk 0:00:25]}  axb6 {[%clk 0:00:03]} 44. bxc5 {[%clk 0:00:25]}  bxc5 {[%clk 0:00:04]} 45. Ra3 {[%clk 0:00:25]}  Kf8 {[%clk 0:00:04]} 46. Ra6 {[%clk 0:00:25]}  Kg7 {[%clk 0:00:03]} 47. Ra5 {[%clk 0:00:24]}  Rdc8 {[%clk 0:00:03]} 48. Be4 {[%clk 0:00:24]}  Re7 {[%clk 0:00:03]} 49. Bd3 {[%clk 0:00:24]}  Rec7 {[%clk 0:00:02]} 50. Ra6 {[%clk 0:00:25]}  Re7 {[%clk 0:00:02]} 51. Rd6 {[%clk 0:00:23]}  Rec7 {[%clk 0:00:02]} 52. Re6 {[%clk 0:00:20]}  Rc6 {[%clk 0:00:02]} 53. Re1 {[%clk 0:00:19]}  R6c7 {[%clk 0:00:02]} 54. Kf3 {[%clk 0:00:19]}  Kf7 {[%clk 0:00:01]} 55. Ra1 {[%clk 0:00:20]}  Kg7 {[%clk 0:00:02]} 56. Rg1 {[%clk 0:00:20]}  Rc6 {[%clk 0:00:02]} 57. g4 {[%clk 0:00:21]}  hxg4+ {[%clk 0:00:03]} 58. Rxg4 {[%clk 0:00:22]}  Be7 {[%clk 0:00:03]} 59. h5 {[%clk 0:00:22]}  Rf6 {[%clk 0:00:02]} 60. hxg6 {[%clk 0:00:21]}  Rcf8 {[%clk 0:00:02]} 61. f5 {[%clk 0:00:21]}  Bd6 {[%clk 0:00:02]} 62. Rh4 {[%clk 0:00:21]}  Rh8 {[%clk 0:00:03]} 63. Rxh8 {[%clk 0:00:21]}  Kxh8 {[%clk 0:00:04]} 64. Kg4 {[%clk 0:00:22]}  Kg7 {[%clk 0:00:05]} 65. Ra4 {[%clk 0:00:23]}  Rf8 {[%clk 0:00:04]} 66. Ra7+ {[%clk 0:00:23]}  Kf6 {[%clk 0:00:05]} 67. Rd7 {[%clk 0:00:23]}  Ke5 {[%clk 0:00:05]} 68. g7 {[%clk 0:00:24]}  Rg8 {[%clk 0:00:05]} 69. Bc4 {[%clk 0:00:24]} 1-0


[Site "https://www.chess.com"]

[Event "Titled Tuesday Blitz August 31 2021"]
[White "Yeletsky, Ivan"]
[Black "Harutjunyan, Gevorg"]
[WhiteFideId "24180327"]
[BlackFideId "13300873"]
[WhiteElo "2344"]
[BlackElo "2498"]
[Result "1/2-1/2"]
[Round "07"]
[TimeControl "180+1"]
[Date "2021.08.31"]
[WhiteClock "0:00:15"]
[BlackClock "0:00:11"]

1. d4 {[%clk 0:02:56]}  Nf6 {[%clk 0:02:59]} 2. Bg5 {[%clk 0:02:56]}  d5 {[%clk 0:02:59]} 3. e3 {[%clk 0:02:55]}  c5 {[%clk 0:02:59]} 4. Nd2 {[%clk 0:02:53]}  Nc6 {[%clk 0:02:53]} 5. c3 {[%clk 0:02:52]}  e5 {[%clk 0:02:46]} 6. dxe5 {[%clk 0:02:52]}  Nxe5 {[%clk 0:02:47]} 7. Ngf3 {[%clk 0:02:52]}  Nxf3+ {[%clk 0:02:47]} 8. Nxf3 {[%clk 0:02:52]}  Be7 {[%clk 0:02:43]} 9. Be2 {[%clk 0:02:27]}  O-O {[%clk 0:02:42]} 10. O-O {[%clk 0:02:27]}  Be6 {[%clk 0:02:40]} 11. Qb3 {[%clk 0:02:23]}  h6 {[%clk 0:02:24]} 12. Bf4 {[%clk 0:02:20]}  d4 {[%clk 0:02:00]} 13. Bc4 {[%clk 0:02:20]}  Bxc4 {[%clk 0:01:58]} 14. Qxc4 {[%clk 0:02:21]}  Qd5 {[%clk 0:01:52]} 15. Qd3 {[%clk 0:02:03]}  dxc3 {[%clk 0:01:38]} 16. Qxc3 {[%clk 0:02:01]}  Rfd8 {[%clk 0:01:38]} 17. Qc2 {[%clk 0:01:51]}  Qe4 {[%clk 0:01:34]} 18. Rac1 {[%clk 0:01:26]}  Qxc2 {[%clk 0:01:28]} 19. Rxc2 {[%clk 0:01:26]}  Nd5 {[%clk 0:01:29]} 20. a3 {[%clk 0:01:13]}  Nxf4 {[%clk 0:01:20]} 21. exf4 {[%clk 0:01:13]}  Bf6 {[%clk 0:01:21]} 22. g3 {[%clk 0:01:13]}  Rd5 {[%clk 0:01:14]} 23. Kg2 {[%clk 0:01:12]}  b5 {[%clk 0:01:09]} 24. b3 {[%clk 0:01:08]}  Rc8 {[%clk 0:00:54]} 25. Rfc1 {[%clk 0:01:08]}  Rd3 {[%clk 0:00:47]} 26. Nd2 {[%clk 0:01:00]}  Bd4 {[%clk 0:00:38]} 27. a4 {[%clk 0:00:48]}  a6 {[%clk 0:00:32]} 28. axb5 {[%clk 0:00:47]}  axb5 {[%clk 0:00:33]} 29. Ra2 {[%clk 0:00:47]}  Re8 {[%clk 0:00:31]} 30. Kf1 {[%clk 0:00:47]}  h5 {[%clk 0:00:30]} 31. h4 {[%clk 0:00:46]}  Rd8 {[%clk 0:00:25]} 32. Ne4 {[%clk 0:00:36]}  Rxb3 {[%clk 0:00:21]} 33. Nxc5 {[%clk 0:00:33]}  Rc3 {[%clk 0:00:20]} 34. Rxc3 {[%clk 0:00:32]}  Bxc3 {[%clk 0:00:21]} 35. Ra7 {[%clk 0:00:29]}  b4 {[%clk 0:00:20]} 36. Ne4 {[%clk 0:00:24]}  Rc8 {[%clk 0:00:16]} 37. Rb7 {[%clk 0:00:23]}  Rc4 {[%clk 0:00:10]} 38. Rb8+ {[%clk 0:00:21]}  Kh7 {[%clk 0:00:09]} 39. Nd6 {[%clk 0:00:22]}  Rc7 {[%clk 0:00:07]} 40. f5 {[%clk 0:00:22]}  Rd7 {[%clk 0:00:07]} 41. Ne4 {[%clk 0:00:22]}  f6 {[%clk 0:00:07]} 42. Nc5 {[%clk 0:00:13]}  Rd5 {[%clk 0:00:06]} 43. Ne4 {[%clk 0:00:13]}  Rxf5 {[%clk 0:00:05]} 44. Nxc3 {[%clk 0:00:13]}  bxc3 {[%clk 0:00:06]} 45. Rc8 {[%clk 0:00:14]}  Rf3 {[%clk 0:00:07]} 46. Ke2 {[%clk 0:00:13]}  Rf5 {[%clk 0:00:07]} 47. Rxc3 {[%clk 0:00:14]}  Re5+ {[%clk 0:00:08]} 48. Kf3 {[%clk 0:00:14]}  Kg6 {[%clk 0:00:09]} 49. Rc7 {[%clk 0:00:14]}  Rf5+ {[%clk 0:00:09]} 50. Kg2 {[%clk 0:00:14]}  Re5 {[%clk 0:00:10]} 51. Kf3 {[%clk 0:00:14]}  Rf5+ {[%clk 0:00:10]} 52. Kg2 {[%clk 0:00:14]}  Re5 {[%clk 0:00:11]} 53. Kf3 {[%clk 0:00:15]} 1/2-1/2


[Site "https://www.chess.com"]

[Event "Titled Tuesday Blitz August 31 2021"]
[White "Yordanov, Nikolay Plamenov"]
[Black "Gusarov, Grigory"]
[WhiteFideId "2907445"]
[BlackFideId "24102172"]
[WhiteElo "2248"]
[BlackElo "2247"]
[Result "1-0"]
[Round "07"]
[TimeControl "180+1"]
[Date "2021.08.31"]
[WhiteClock "0:00:10"]
[BlackClock "0:00:11"]

1. d4 {[%clk 0:02:31]}  Nf6 {[%clk 0:02:56]} 2. Bf4 {[%clk 0:02:31]}  d6 {[%clk 0:02:56]} 3. e3 {[%clk 0:02:32]}  c5 {[%clk 0:02:55]} 4. Nf3 {[%clk 0:02:31]}  cxd4 {[%clk 0:02:54]} 5. exd4 {[%clk 0:02:31]}  Qb6 {[%clk 0:02:53]} 6. b3 {[%clk 0:02:30]}  Bg4 {[%clk 0:02:52]} 7. c3 {[%clk 0:02:26]}  Nc6 {[%clk 0:02:44]} 8. h3 {[%clk 0:02:26]}  Bxf3 {[%clk 0:02:44]} 9. Qxf3 {[%clk 0:02:26]}  e5 {[%clk 0:02:44]} 10. dxe5 {[%clk 0:02:18]}  dxe5 {[%clk 0:02:45]} 11. Be3 {[%clk 0:02:18]}  Bc5 {[%clk 0:02:45]} 12. Bc4 {[%clk 0:01:57]}  e4 {[%clk 0:02:36]} 13. Qg3 {[%clk 0:01:47]}  Bxe3 {[%clk 0:02:33]} 14. fxe3 {[%clk 0:01:47]}  Qc5 {[%clk 0:02:19]} 15. O-O {[%clk 0:01:39]}  O-O-O {[%clk 0:01:50]} 16. Bxf7 {[%clk 0:01:36]}  Ne5 {[%clk 0:01:19]} 17. Be6+ {[%clk 0:01:30]}  Kb8 {[%clk 0:01:19]} 18. Rf5 {[%clk 0:01:27]}  Rd1+ {[%clk 0:01:09]} 19. Kh2 {[%clk 0:01:24]}  Re8 {[%clk 0:00:57]} 20. Rxe5 {[%clk 0:01:15]}  Qd6 {[%clk 0:00:56]} 21. c4 {[%clk 0:00:35]}  Rxe6 {[%clk 0:00:53]} 22. Rxe6 {[%clk 0:00:35]}  Rh1+ {[%clk 0:00:54]} 23. Kxh1 {[%clk 0:00:34]}  Qxg3 {[%clk 0:00:54]} 24. Nc3 {[%clk 0:00:30]}  Qxe3 {[%clk 0:00:48]} 25. Nd5 {[%clk 0:00:29]}  Nxd5 {[%clk 0:00:43]} 26. cxd5 {[%clk 0:00:30]}  Kc7 {[%clk 0:00:35]} 27. Rf1 {[%clk 0:00:25]}  Kd8 {[%clk 0:00:19]} 28. Rf7 {[%clk 0:00:18]}  Qc1+ {[%clk 0:00:16]} 29. Kh2 {[%clk 0:00:18]}  Qc5 {[%clk 0:00:12]} 30. Rxe4 {[%clk 0:00:10]}  Qxd5 {[%clk 0:00:12]} 31. Ref4 {[%clk 0:00:10]}  Qe5 {[%clk 0:00:12]} 32. g3 {[%clk 0:00:08]}  g5 {[%clk 0:00:10]} 33. Rf2 {[%clk 0:00:08]}  h5 {[%clk 0:00:10]} 34. Rxb7 {[%clk 0:00:08]}  h4 {[%clk 0:00:09]} 35. Rf8+ {[%clk 0:00:08]}  Qe8 {[%clk 0:00:10]} 36. Rxe8+ {[%clk 0:00:08]}  Kxe8 {[%clk 0:00:10]} 37. gxh4 {[%clk 0:00:09]}  gxh4 {[%clk 0:00:11]} 38. Rxa7 {[%clk 0:00:09]}  Kd8 {[%clk 0:00:11]} 39. b4 {[%clk 0:00:10]} 1-0


[Site "https://www.chess.com"]

[Event "Titled Tuesday Blitz August 31 2021"]
[White "Zubov, Alexander"]
[Black "Schmakel, Sam"]
[WhiteFideId "14109409"]
[BlackFideId "2039311"]
[WhiteElo "2740"]
[BlackElo "2356"]
[Result "1-0"]
[Round "07"]
[TimeControl "180+1"]
[Date "2021.08.31"]
[WhiteClock "0:00:11"]
[BlackClock "0:00:02"]

1. e4 {[%clk 0:03:00]}  e5 {[%clk 0:02:59]} 2. Nf3 {[%clk 0:03:00]}  Nc6 {[%clk 0:03:00]} 3. Bb5 {[%clk 0:03:00]}  Nf6 {[%clk 0:03:00]} 4. d3 {[%clk 0:02:59]}  Bc5 {[%clk 0:03:00]} 5. Nc3 {[%clk 0:02:59]}  Nd4 {[%clk 0:02:57]} 6. Ba4 {[%clk 0:02:58]}  O-O {[%clk 0:02:32]} 7. Bg5 {[%clk 0:02:45]}  Nxf3+ {[%clk 0:02:20]} 8. Qxf3 {[%clk 0:02:42]}  c6 {[%clk 0:02:21]} 9. Bb3 {[%clk 0:02:29]}  a5 {[%clk 0:02:01]} 10. a4 {[%clk 0:02:18]}  Bd4 {[%clk 0:01:40]} 11. O-O {[%clk 0:02:07]}  Bxc3 {[%clk 0:01:36]} 12. bxc3 {[%clk 0:02:07]}  d6 {[%clk 0:01:36]} 13. Rab1 {[%clk 0:02:04]}  h6 {[%clk 0:01:34]} 14. Bxf6 {[%clk 0:01:56]}  Qxf6 {[%clk 0:01:34]} 15. Qxf6 {[%clk 0:01:56]}  gxf6 {[%clk 0:01:35]} 16. f4 {[%clk 0:01:57]}  Kg7 {[%clk 0:01:01]} 17. Rf3 {[%clk 0:01:55]}  b5 {[%clk 0:00:52]} 18. Rbf1 {[%clk 0:00:42]}  Ra7 {[%clk 0:00:49]} 19. fxe5 {[%clk 0:00:34]}  fxe5 {[%clk 0:00:50]} 20. Rg3+ {[%clk 0:00:35]}  Kh7 {[%clk 0:00:49]} 21. Rf6 {[%clk 0:00:34]}  bxa4 {[%clk 0:00:40]} 22. Bxa4 {[%clk 0:00:33]}  Be6 {[%clk 0:00:40]} 23. c4 {[%clk 0:00:16]}  Rb8 {[%clk 0:00:17]} 24. Rf1 {[%clk 0:00:14]}  c5 {[%clk 0:00:12]} 25. Ra1 {[%clk 0:00:14]}  Rg8 {[%clk 0:00:05]} 26. Rf3 {[%clk 0:00:13]}  Kg7 {[%clk 0:00:05]} 27. Rff1 {[%clk 0:00:11]}  Rb8 {[%clk 0:00:05]} 28. Ra3 {[%clk 0:00:11]}  Rb4 {[%clk 0:00:05]} 29. Rfa1 {[%clk 0:00:11]}  f5 {[%clk 0:00:04]} 30. exf5 {[%clk 0:00:11]}  Bxf5 {[%clk 0:00:05]} 31. Kf2 {[%clk 0:00:05]}  e4 {[%clk 0:00:04]} 32. Ke3 {[%clk 0:00:05]}  exd3 {[%clk 0:00:02]} 33. cxd3 {[%clk 0:00:06]}  Rb2 {[%clk 0:00:03]} 34. R1a2 {[%clk 0:00:05]}  Rxa2 {[%clk 0:00:02]} 35. Rxa2 {[%clk 0:00:05]}  Kf6 {[%clk 0:00:02]} 36. Bc6 {[%clk 0:00:01]}  Ke5 {[%clk 0:00:02]} 37. g3 {[%clk 0:00:01]}  Be6 {[%clk 0:00:01]} 38. Ra3 {[%clk 0:00:01]}  Bf5 {[%clk 0:00:02]} 39. h4 {[%clk 0:00:01]}  Bg4 {[%clk 0:00:02]} 40. Bb5 {[%clk 0:00:01]}  Bd1 {[%clk 0:00:02]} 41. Kd2 {[%clk 0:00:02]}  Bf3 {[%clk 0:00:02]} 42. Ra1 {[%clk 0:00:03]}  Bg4 {[%clk 0:00:02]} 43. Re1+ {[%clk 0:00:03]}  Kf6 {[%clk 0:00:03]} 44. Rf1+ {[%clk 0:00:04]}  Ke5 {[%clk 0:00:03]} 45. Kc3 {[%clk 0:00:04]}  Bf5 {[%clk 0:00:04]} 46. Re1+ {[%clk 0:00:05]}  Kf6 {[%clk 0:00:04]} 47. Rf1 {[%clk 0:00:05]}  Rg7 {[%clk 0:00:04]} 48. Bc6 {[%clk 0:00:04]}  Ke5 {[%clk 0:00:03]} 49. Re1+ {[%clk 0:00:05]}  Kf6 {[%clk 0:00:03]} 50. Re3 {[%clk 0:00:05]}  Ra7 {[%clk 0:00:03]} 51. Ba4 {[%clk 0:00:06]}  Bd7 {[%clk 0:00:03]} 52. Bxd7 {[%clk 0:00:05]}  Rxd7 {[%clk 0:00:03]} 53. Kb3 {[%clk 0:00:06]}  d5 {[%clk 0:00:03]} 54. Ka4 {[%clk 0:00:06]}  dxc4 {[%clk 0:00:03]} 55. dxc4 {[%clk 0:00:07]}  Rd4 {[%clk 0:00:04]} 56. Kb5 {[%clk 0:00:08]}  a4 {[%clk 0:00:04]} 57. Kxc5 {[%clk 0:00:07]}  Rg4 {[%clk 0:00:04]} 58. Ra3 {[%clk 0:00:08]}  Ke6 {[%clk 0:00:04]} 59. Kb5 {[%clk 0:00:07]}  Kd7 {[%clk 0:00:03]} 60. c5 {[%clk 0:00:07]}  Kc7 {[%clk 0:00:03]} 61. Rxa4 {[%clk 0:00:08]}  Rxg3 {[%clk 0:00:04]} 62. Ra7+ {[%clk 0:00:08]}  Kc8 {[%clk 0:00:04]} 63. Rh7 {[%clk 0:00:09]}  Rg6 {[%clk 0:00:02]} 64. c6 {[%clk 0:00:10]}  Rg1 {[%clk 0:00:02]} 65. Rxh6 {[%clk 0:00:10]}  Rb1+ {[%clk 0:00:03]} 66. Kc5 {[%clk 0:00:11]}  Rc1+ {[%clk 0:00:04]} 67. Kd5 {[%clk 0:00:11]}  Rd1+ {[%clk 0:00:04]} 68. Ke5 {[%clk 0:00:11]}  Kc7 {[%clk 0:00:04]} 69. h5 {[%clk 0:00:11]}  Re1+ {[%clk 0:00:04]} 70. Kf5 {[%clk 0:00:12]}  Rf1+ {[%clk 0:00:04]} 71. Ke5 {[%clk 0:00:11]}  Re1+ {[%clk 0:00:05]} 72. Kf5 {[%clk 0:00:10]}  Rf1+ {[%clk 0:00:05]} 73. Ke6 {[%clk 0:00:11]}  Kxc6 {[%clk 0:00:04]} 74. Rf6 {[%clk 0:00:11]}  Re1+ {[%clk 0:00:03]} 75. Kf7+ {[%clk 0:00:11]}  Kd7 {[%clk 0:00:04]} 76. h6 {[%clk 0:00:12]}  Rh1 {[%clk 0:00:04]} 77. Kg7 {[%clk 0:00:11]}  Ke7 {[%clk 0:00:04]} 78. Rg6 {[%clk 0:00:11]}  Rh4 {[%clk 0:00:02]} 79. h7 {[%clk 0:00:11]} 1-0


[Site "https://www.chess.com"]

[Event "Titled Tuesday Blitz August 31 2021"]
[White "stanyga"]
[Black "Eljanov, Pavel"]
[BlackFideId "14102951"]
[WhiteElo "2707"]
[BlackElo "2602"]
[Result "0-1"]
[Round "07"]
[TimeControl "180+1"]
[Date "2021.08.31"]
[WhiteClock "0:00:52"]
[BlackClock "0:02:19"]

1. e4 {[%clk 0:02:59]}  c6 {[%clk 0:02:59]} 2. d4 {[%clk 0:02:58]}  d5 {[%clk 0:03:00]} 3. e5 {[%clk 0:02:58]}  Bf5 {[%clk 0:03:00]} 4. Nf3 {[%clk 0:02:59]}  e6 {[%clk 0:03:00]} 5. Be2 {[%clk 0:02:59]}  Ne7 {[%clk 0:03:01]} 6. O-O {[%clk 0:02:59]}  Ng6 {[%clk 0:03:01]} 7. a4 {[%clk 0:02:57]}  Nd7 {[%clk 0:02:59]} 8. a5 {[%clk 0:02:57]}  f6 {[%clk 0:02:58]} 9. a6 {[%clk 0:02:53]}  b6 {[%clk 0:02:56]} 10. exf6 {[%clk 0:02:52]}  Qxf6 {[%clk 0:02:57]} 11. c4 {[%clk 0:02:52]}  Bd6 {[%clk 0:02:55]} 12. cxd5 {[%clk 0:02:50]}  exd5 {[%clk 0:02:51]} 13. Bg5 {[%clk 0:02:45]}  Qf7 {[%clk 0:02:51]} 14. Bd3 {[%clk 0:02:42]}  O-O {[%clk 0:02:49]} 15. Bxf5 {[%clk 0:02:42]}  Qxf5 {[%clk 0:02:49]} 16. Nc3 {[%clk 0:02:37]}  h6 {[%clk 0:02:45]} 17. Be3 {[%clk 0:02:34]}  Nf6 {[%clk 0:02:45]} 18. h3 {[%clk 0:02:22]}  Rae8 {[%clk 0:02:44]} 19. Qb1 {[%clk 0:02:11]}  Ne4 {[%clk 0:02:43]} 20. Nd2 {[%clk 0:01:57]}  Nf4 {[%clk 0:02:41]} 21. Ncxe4 {[%clk 0:01:37]}  dxe4 {[%clk 0:02:41]} 22. Rc1 {[%clk 0:01:18]}  Nxh3+ {[%clk 0:02:21]} 23. gxh3 {[%clk 0:01:17]}  Qxh3 {[%clk 0:02:22]} 24. Nf1 {[%clk 0:00:58]}  Re6 {[%clk 0:02:20]} 25. Qa2 {[%clk 0:00:52]}  Kh8 {[%clk 0:02:19]} 0-1


[Site "https://www.chess.com"]

[Event "Titled Tuesday Blitz August 31 2021"]
[White "Abdurakhmonov, Mukhammadali"]
[Black "Bernadskiy, Vitaliy"]
[WhiteFideId "14207346"]
[BlackFideId "14100371"]
[WhiteElo "2266"]
[BlackElo "2510"]
[Result "1/2-1/2"]
[Round "08"]
[TimeControl "180+1"]
[Date "2021.08.31"]
[WhiteClock "0:02:06"]
[BlackClock "0:02:10"]

1. e4 {[%clk 0:03:00]}  d5 {[%clk 0:02:58]} 2. exd5 {[%clk 0:03:00]}  Qxd5 {[%clk 0:02:59]} 3. Nc3 {[%clk 0:03:00]}  Qd8 {[%clk 0:03:00]} 4. d4 {[%clk 0:03:00]}  g6 {[%clk 0:03:01]} 5. Nf3 {[%clk 0:02:54]}  Bg7 {[%clk 0:03:00]} 6. Bc4 {[%clk 0:02:54]}  Nf6 {[%clk 0:03:00]} 7. O-O {[%clk 0:02:55]}  O-O {[%clk 0:03:00]} 8. Re1 {[%clk 0:02:55]}  Nc6 {[%clk 0:03:00]} 9. h3 {[%clk 0:02:55]}  b6 {[%clk 0:03:00]} 10. Ne5 {[%clk 0:02:40]}  Nxd4 {[%clk 0:02:40]} 11. Be3 {[%clk 0:02:20]}  c5 {[%clk 0:02:29]} 12. Bxd4 {[%clk 0:02:19]}  Qxd4 {[%clk 0:02:30]} 13. Qf3 {[%clk 0:02:19]}  Bf5 {[%clk 0:02:12]} 14. Rad1 {[%clk 0:02:15]}  Qh4 {[%clk 0:02:11]} 15. Bxf7+ {[%clk 0:02:07]}  Kh8 {[%clk 0:02:10]} 16. Bb3 {[%clk 0:02:06]} 1/2-1/2


[Site "https://www.chess.com"]

[Event "Titled Tuesday Blitz August 31 2021"]
[White "Bacrot, Etienne"]
[Black "Piesik, Piotr"]
[WhiteFideId "605506"]
[BlackFideId "1136194"]
[WhiteElo "2673"]
[BlackElo "2395"]
[Result "0-1"]
[Round "08"]
[TimeControl "180+1"]
[Date "2021.08.31"]
[WhiteClock "0:00:16"]
[BlackClock "0:00:20"]

1. g4 {[%clk 0:03:00]}  d5 {[%clk 0:02:54]} 2. Bg2 {[%clk 0:03:00]}  c6 {[%clk 0:02:54]} 3. c4 {[%clk 0:03:00]}  Bxg4 {[%clk 0:02:51]} 4. cxd5 {[%clk 0:03:00]}  cxd5 {[%clk 0:02:51]} 5. Qb3 {[%clk 0:02:59]}  Qd7 {[%clk 0:02:49]} 6. Bxd5 {[%clk 0:02:57]}  Be6 {[%clk 0:02:49]} 7. Bxe6 {[%clk 0:02:49]}  fxe6 {[%clk 0:02:48]} 8. Nf3 {[%clk 0:02:47]}  Nc6 {[%clk 0:02:47]} 9. Nc3 {[%clk 0:02:46]}  Nf6 {[%clk 0:02:45]} 10. d4 {[%clk 0:02:45]}  g6 {[%clk 0:02:41]} 11. Bf4 {[%clk 0:02:34]}  Bg7 {[%clk 0:02:39]} 12. O-O-O {[%clk 0:02:32]}  O-O {[%clk 0:02:37]} 13. Ne5 {[%clk 0:02:33]}  Qc8 {[%clk 0:02:27]} 14. Kb1 {[%clk 0:02:27]}  Nxe5 {[%clk 0:02:23]} 15. Bxe5 {[%clk 0:02:26]}  Qc6 {[%clk 0:02:19]} 16. h4 {[%clk 0:02:04]}  Nd5 {[%clk 0:02:16]} 17. Bxg7 {[%clk 0:01:58]}  Kxg7 {[%clk 0:02:14]} 18. f3 {[%clk 0:01:56]}  Nxc3+ {[%clk 0:02:07]} 19. bxc3 {[%clk 0:01:52]}  Rac8 {[%clk 0:02:06]} 20. Kc2 {[%clk 0:01:49]}  Qd5 {[%clk 0:02:02]} 21. h5 {[%clk 0:01:45]}  g5 {[%clk 0:01:59]} 22. h6+ {[%clk 0:01:36]}  Kg6 {[%clk 0:01:59]} 23. Qb1 {[%clk 0:01:33]}  Qf5+ {[%clk 0:01:49]} 24. Rd3 {[%clk 0:01:31]}  e5 {[%clk 0:01:46]} 25. dxe5 {[%clk 0:01:27]}  Qxe5 {[%clk 0:01:46]} 26. Qxb7 {[%clk 0:01:18]}  Qxe2+ {[%clk 0:01:42]} 27. Rd2 {[%clk 0:01:16]}  Qxf3 {[%clk 0:01:37]} 28. Qb1 {[%clk 0:01:15]}  Qe4+ {[%clk 0:01:13]} 29. Rd3 {[%clk 0:01:12]}  Rf2+ {[%clk 0:01:11]} 30. Kc1 {[%clk 0:01:05]}  Kf7 {[%clk 0:00:53]} 31. Qb3+ {[%clk 0:01:00]}  Kf8 {[%clk 0:00:53]} 32. Rhd1 {[%clk 0:00:59]}  Qf4+ {[%clk 0:00:47]} 33. Kb1 {[%clk 0:00:59]}  Rf1 {[%clk 0:00:47]} 34. Qe6 {[%clk 0:00:48]}  Rb8+ {[%clk 0:00:40]} 35. Kc2 {[%clk 0:00:48]}  Rxd1 {[%clk 0:00:39]} 36. Rxd1 {[%clk 0:00:46]}  Qa4+ {[%clk 0:00:29]} 37. Kc1 {[%clk 0:00:36]}  Qa3+ {[%clk 0:00:28]} 38. Kd2 {[%clk 0:00:36]}  Rd8+ {[%clk 0:00:28]} 39. Ke2 {[%clk 0:00:26]}  Qb2+ {[%clk 0:00:26]} 40. Kf3 {[%clk 0:00:21]}  Qxc3+ {[%clk 0:00:25]} 41. Kg4 {[%clk 0:00:21]}  Rxd1 {[%clk 0:00:21]} 42. Qf5+ {[%clk 0:00:19]}  Qf6 {[%clk 0:00:20]} 43. Qc8+ {[%clk 0:00:19]}  Kf7 {[%clk 0:00:20]} 44. Qe6+ {[%clk 0:00:16]}  Qxe6+ {[%clk 0:00:20]} 0-1


[Site "https://www.chess.com"]